bitfinex-derivatives/quotes_ETHF0:USTF0_20241008
["timestamp","ask_amount","ask_price","bid_price","bid_amount"]
[1728407206404,3.2078,2438.3,2438.2,0.41036]
[1728407207595,25.0,3424.0,2438.5,0.41031]
[1728407207596,0.41029,2438.7,2438.5,0.41031]
[1728407207811,0.41028,2438.7,2438.5,0.41029]
[1728407207998,0.4103,2438.6,2438.4,0.41032]
[1728407208201,8.0323,2438.8,2438.0,0.923]
[1728407208506,7.55801,2439.1,2438.9,0.41023]
[1728407208704,0.41023,2439.0,2438.8,0.41025]
[1728407208905,7.1478,2439.1,2439.0,0.41022]
[1728407208906,7.55801,2439.1,2439.0,0.41022]
[1728407209102,11.2478,2439.1,2438.9,0.41023]
[1728407209400,7.55801,2439.1,2439.0,0.41022]
[1728407209607,7.1478,2439.1,2439.0,0.41022]
[1728407209800,7.1478,2439.1,2438.6,1.47884]
[1728407210604,7.1478,2439.1,2439.0,0.41022]
[1728407210806,3.2078,2439.1,2439.0,0.41022]
[1728407213207,3.61802,2439.1,2438.9,0.41023]
[1728407214015,0.41022,2439.1,2438.9,0.41023]
[1728407214219,0.41023,2439.0,2438.8,0.41025]
[1728407214715,0.41023,2439.0,2438.9,0.41024]
[1728407215618,0.41024,2439.0,2438.8,0.41025]
[1728407216115,0.41024,2439.0,2438.9,0.41024]
[1728407216420,3.61023,2439.0,2438.9,0.41024]
[1728407216917,3.61022,2439.0,2438.9,0.41024]
[1728407217313,0.41025,2438.9,2438.8,0.41025]
[1728407217515,3.2,2439.0,2438.6,0.4531]
[1728407217817,0.41024,2438.9,2438.8,0.41026]
[1728407218515,3.61024,2439.0,2438.9,0.41024]
[1728407218717,3.2,2439.0,2438.9,0.41024]
[1728407220316,3.2,2439.0,2438.6,0.4531]
[1728407220521,0.41029,2438.6,2438.5,0.8642]
[1728407220718,3.61029,2438.6,2438.5,0.8642]
[1728407220915,3.2,2438.6,2438.5,0.8642]
[1728407221623,3.61029,2438.6,2438.5,0.8642]
[1728407221920,3.2,2438.6,2438.5,0.8642]
[1728407222118,3.61029,2438.6,2438.5,0.8642]
[1728407222320,0.41033,2438.4,2438.3,4.05783]
[1728407222521,0.41033,2438.4,2438.3,3.2078]
[1728407222522,3.61033,2438.4,2438.3,3.2078]
[1728407222716,3.2,2438.4,2438.0,4.121]
[1728407222917,0.41037,2438.2,2438.1,0.41036]
[1728407223221,0.41038,2438.1,2438.0,0.9132]
[1728407223419,0.41044,2437.8,2437.7,0.41044]
[1728407223614,3.2,2437.8,2437.5,0.4475]
[1728407223813,3.61046,2437.6,2437.5,4.06576]
[1728407224016,3.61046,2437.6,2437.5,0.85796]
[1728407224518,3.61046,2437.6,2437.5,0.85798]
[1728407224716,3.61046,2437.6,2437.5,0.41048]
[1728407225518,3.2,2437.6,2437.5,0.41048]
[1728407225915,4.23385,2437.9,2437.5,4.1024]
[1728407225916,3.2,2437.9,2437.5,4.1024]
[1728407226119,3.2,2438.1,2438.0,0.41039]
[1728407226719,3.2078,2438.2,2438.1,0.41038]
[1728407227923,3.61816,2438.2,2438.1,0.41038]
[1728407228118,3.61816,2438.2,2437.8,0.886]
[1728407228119,3.2078,2438.2,2437.8,0.886]
[1728407228324,3.6104,2438.0,2437.8,1.29641]
[1728407228525,3.2,2438.0,2437.9,0.41041]
[1728407228726,0.41038,2438.1,2437.8,0.886]
[1728407229027,0.41038,2438.1,2438.0,0.41039]
[1728407229831,3.6514,2438.2,2438.1,0.41038]
[1728407230225,3.6514,2438.2,2437.8,1.91207]
[1728407230422,0.41038,2438.1,2437.9,0.41041]
[1728407230721,3.6514,2438.2,2437.8,0.886]
[1728407230722,7.5914,2438.2,2437.8,1.29642]
[1728407230927,7.5914,2438.2,2437.4,1.23124]
[1728407230928,1.02595,2438.1,2437.4,1.23124]
[1728407231125,0.41042,2437.9,2437.8,0.41042]
[1728407231729,1.02595,2438.1,2437.6,0.4391]
[1728407232024,0.41042,2437.9,2437.8,0.41041]
[1728407232440,0.41044,2437.8,2437.7,0.41044]
[1728407232731,1.02605,2437.9,2437.5,0.4205]
[1728407232923,0.41046,2437.6,2437.5,0.83097]
[1728407234430,0.41053,2437.2,2436.9,1.66927913]
[1728407234730,3.94,2437.1,2436.8,0.4139]
[1728407234927,3.94,2437.1,2436.6,3.2078]
[1728407234928,5.0153,2437.1,2436.6,3.2078]
[1728407235119,5.0153,2437.1,2436.5,1.05370913]
[1728407235120,4.35058,2436.9,2436.5,1.05370913]
[1728407235324,0.4106,2436.8,2436.5,0.41064]
[1728407235522,3.94,2436.9,2436.7,0.41061]
[1728407235722,0.41057,2437.0,2436.5,1.05370913]
[1728407235930,0.41058,2436.9,2436.6,0.41062]
[1728407236130,0.9121,2437.1,2436.5,1.05370913]
[1728407236320,3.2078,2437.2,2436.7,1.05370913]
[1728407236521,3.94,2437.5,2436.8,0.4655]
[1728407236522,4.23404,2437.4,2436.8,0.4655]
[1728407236721,0.41054,2437.2,2436.9,0.41057]
[1728407237326,0.41052,2437.3,2437.0,0.41055]
[1728407237728,3.94,2437.5,2436.9,0.4397]
[1728407237928,3.2078,2437.4,2436.9,0.4397]
[1728407238230,0.41058,2436.9,2436.8,0.4655]
[1728407238432,0.41061,2436.7,2436.5,1.46434913]
[1728407238627,4.96644,2437.0,2436.6,0.41063]
[1728407238628,0.88471,2436.8,2436.6,0.41063]
[1728407239126,0.4741,2436.8,2436.7,0.41061]
[1728407239331,0.41059,2436.9,2436.5,1.05370913]
[1728407239531,3.94,2437.0,2436.5,1.05370913]
[1728407239532,0.41057,2437.0,2436.8,0.41059]
[1728407239723,0.4292,2437.1,2436.5,1.05370913]
[1728407239724,0.41058,2436.9,2436.5,1.05370913]
[1728407239923,0.4292,2437.1,2436.5,1.05370913]
[1728407240125,0.41057,2437.0,2436.8,0.41059]
[1728407240329,0.41058,2436.9,2436.8,0.41059]
[1728407240531,0.4292,2437.1,2436.4,1.92890913]
[1728407240730,0.4292,2437.1,2436.4,0.8752]
[1728407240930,0.41056,2437.0,2436.8,0.41059]
[1728407241331,1.45558,2437.1,2436.8,0.41059]
[1728407241522,1.45558,2437.1,2436.4,1.90185]
[1728407241523,0.4292,2437.1,2436.5,1.02661]
[1728407241728,0.83975,2437.1,2436.6,1.02658]
[1728407241928,0.41058,2436.9,2436.8,0.41059]
[1728407242128,0.41058,2436.9,2436.5,1.02661]
[1728407242331,0.4292,2437.1,2436.4,0.8752]
[1728407242332,1.45558,2437.1,2436.4,0.8752]
[1728407242529,0.41059,2436.9,2436.7,0.4106]
[1728407242840,0.4106,2436.8,2436.7,0.4106]
[1728407244935,0.41058,2437.0,2436.9,0.41057]
[1728407245340,0.41059,2436.9,2436.8,0.41058]
[1728407245940,0.41056,2437.1,2437.0,0.41055]
[1728407246435,0.41059,2436.9,2436.8,0.41058]
[1728407246935,0.41061,2436.8,2436.7,0.4106]
[1728407247132,1.02647,2436.9,2436.6,3.2078]
[1728407247338,1.02637,2437.1,2436.6,3.2078]
[1728407247536,0.41061,2436.8,2436.7,0.41061]
[1728407249142,0.41059,2436.9,2436.8,0.4106]
[1728407249533,0.41057,2437.0,2436.9,0.41056]
[1728407249934,5.44043,2437.2,2436.6,3.2078]
[1728407250236,0.41057,2437.0,2436.9,0.41057]
[1728407250639,0.41056,2437.1,2437.0,0.41055]
[1728407251542,4.1032,2437.1,2436.7,1.02653]
[1728407251730,0.41055,2437.1,2437.0,0.41055]
[1728407252131,0.41056,2437.0,2436.9,0.41057]
[1728407252336,0.41055,2437.1,2437.0,0.41056]
[1728407252536,3.61055,2437.1,2437.0,0.41056]
[1728407253136,3.2,2437.1,2436.6,3.2078]
[1728407253338,3.61058,2436.9,2436.8,0.4106]
[1728407253844,3.2,2436.9,2436.8,0.4106]
[1728407255442,0.41056,2437.1,2436.6,4.23438]
[1728407255643,3.61051,2437.3,2436.6,3.2078]
[1728407255845,0.41053,2437.2,2437.1,0.41054]
[1728407256442,3.2,2437.3,2436.9,1.88015]
[1728407256644,0.41054,2437.2,2437.1,0.41054]
[1728407256841,0.41056,2437.1,2437.0,0.41055]
[1728407257143,3.61056,2437.1,2437.0,0.41055]
[1728407257447,3.2,2437.1,2437.0,0.41055]
[1728407257947,3.61054,2437.1,2437.0,0.41055]
[1728407258450,3.2,2437.1,2437.0,0.41055]
[1728407259037,3.2,2437.3,2437.2,0.41053]
[1728407259344,3.61051,2437.3,2437.2,0.41053]
[1728407259646,3.2,2437.3,2436.9,1.88013]
[1728407259841,3.2,2437.1,2436.9,0.8537]
[1728407260041,3.2,2437.1,2437.0,0.41056]
[1728407260246,3.6183,2437.4,2437.3,0.41051]
[1728407260443,7.43405,2437.4,2436.9,0.8537]
[1728407260645,3.2,2437.1,2436.9,0.8537]
[1728407260855,3.61056,2437.1,2437.0,0.41056]
[1728407262051,3.2,2437.1,2437.0,0.41056]
[1728407262246,3.2,2437.3,2436.9,1.88015]
[1728407262552,3.61052,2437.3,2437.2,0.41053]
[1728407263853,3.2,2437.3,2437.2,0.41053]
[1728407264049,3.61051,2437.3,2437.2,0.41053]
[1728407265855,0.41053,2437.2,2437.1,0.41053]
[1728407266452,3.61052,2437.3,2437.2,0.41053]
[1728407266658,3.2,2437.3,2436.9,4.0615]
[1728407266952,3.2,2437.3,2437.2,0.41053]
[1728407266953,3.61052,2437.3,2437.2,0.41053]
[1728407267144,3.2,2437.3,2436.9,5.08794]
[1728407267345,0.41053,2437.2,2437.1,0.41053]
[1728407267746,3.2,2437.3,2436.9,4.0615]
[1728407267948,3.2,2437.3,2437.2,0.41053]
[1728407267949,3.61052,2437.3,2437.2,0.41053]
[1728407268151,3.2,2437.3,2436.9,4.0615]
[1728407268361,3.2,2437.3,2437.1,0.41054]
[1728407268362,0.41054,2437.2,2437.1,0.41054]
[1728407269049,0.41053,2437.2,2437.1,0.41053]
[1728407269350,3.2,2437.3,2436.9,1.88015]
[1728407269857,0.41055,2437.1,2437.0,0.41055]
[1728407270158,0.41053,2437.2,2437.1,0.41053]
[1728407271252,0.41056,2437.0,2436.9,0.8537]
[1728407271455,3.61056,2437.0,2436.9,0.8537]
[1728407271754,0.41061,2436.7,2436.6,3.61842]
[1728407272056,0.41061,2436.7,2436.6,4.05192]
[1728407272554,4.2265,2436.8,2436.4,0.4164]
[1728407272754,3.2,2436.6,2436.3,3.6413]
[1728407272957,3.61066,2436.4,2436.3,3.2078]
[1728407273360,1.90587,2436.7,2436.3,3.2078]
[1728407273361,0.8793,2436.7,2436.3,3.61848]
[1728407273655,0.6155,2437.4,2437.0,0.41055]
[1728407273860,0.41047,2437.6,2437.1,4.0812]
[1728407274056,0.8698,2437.7,2437.1,4.089]
[1728407274358,3.2,2437.8,2437.3,0.4105]
[1728407274359,3.61044,2437.8,2437.3,0.4105]
[1728407274652,3.61043,2437.8,2437.3,0.4105]
[1728407274858,3.2,2437.7,2437.3,0.4105]
[1728407275359,3.2,2437.4,2437.1,4.089]
[1728407275652,3.2,2437.4,2437.1,4.49953]
[1728407275867,3.2078,2438.2,2437.6,0.41045]
[1728407276060,3.2078,2438.2,2437.4,0.41049]
[1728407276061,0.41042,2437.9,2437.4,0.41049]
[1728407276363,0.84321,2438.0,2437.5,0.41047]
[1728407277054,0.4328,2438.0,2437.6,0.83096]
[1728407277365,0.8432,2438.0,2437.6,0.83096]
[1728407278258,3.2,2437.9,2437.6,0.4205]
[1728407278462,3.61041,2437.9,2437.6,0.83095]
[1728407279260,3.2,2437.9,2437.6,0.4205]
[1728407279456,3.61042,2437.9,2437.6,0.83095]
[1728407280051,0.41043,2437.8,2437.6,0.83095]
[1728407280364,3.2,2437.9,2437.6,0.4205]
[1728407280563,0.41043,2437.8,2437.6,0.83095]
[1728407280757,0.41044,2437.7,2437.6,0.4205]
[1728407280958,0.41044,2437.7,2437.5,0.41047]
[1728407281155,0.41044,2437.7,2437.2,0.4085]
[1728407281355,3.2,2437.9,2437.6,0.41045]
[1728407281555,0.41044,2437.7,2437.6,0.41045]
[1728407281758,0.41049,2437.5,2437.4,0.41049]
[1728407281955,3.2,2437.5,2437.4,0.41049]
[1728407282367,3.2,2437.5,2437.2,0.4085]
[1728407282368,4.02898,2437.5,2437.3,0.4105]
[1728407282658,4.02898,2437.5,2437.4,0.41049]
[1728407282856,3.6185,2437.5,2437.2,0.4085]
[1728407283059,4.02899,2437.5,2437.3,0.4105]
[1728407283265,0.4105,2437.4,2437.3,0.4105]
[1728407283465,0.4105,2437.4,2437.3,0.41051]
[1728407283662,0.41049,2437.4,2437.2,0.81902]
[1728407283862,0.41053,2437.2,2437.1,0.4383]
[1728407284066,0.41056,2437.0,2436.8,0.41058]
[1728407284264,0.41059,2436.9,2436.7,0.4106]
[1728407284460,0.82909,2436.9,2436.7,0.4106]
[1728407284659,0.4106,2436.8,2436.7,0.4106]
[1728407284862,0.4185,2436.9,2436.7,0.4106]
[1728407285167,3.2,2436.8,2436.5,0.8412]
[1728407285362,3.2,2436.7,2436.4,3.2078]
[1728407285669,0.41063,2436.6,2436.5,0.41064]
[1728407286257,0.41065,2436.5,2436.4,3.2078]
[1728407286663,4.51465,2436.5,2436.4,3.2078]
[1728407287971,4.104,2436.5,2436.4,3.61846]
[1728407288173,4.104,2436.5,2436.4,3.2078]
[1728407288174,4.51465,2436.5,2436.4,3.2078]
[1728407289164,4.104,2436.5,2436.4,3.2078]
[1728407289366,4.104,2436.5,2434.6,0.63254896]
[1728407289367,0.41071,2436.2,2435.9,0.41074]
[1728407289666,2.42871,2436.2,2435.7,0.846]
[1728407289861,2.018,2436.2,2436.0,0.41073]
[1728407290061,0.41069,2436.3,2435.7,0.846]
[1728407290062,3.2078,2436.1,2435.7,0.846]
[1728407290262,3.2078,2436.1,2435.8,3.2]
[1728407290458,3.2078,2436.1,2436.0,0.41073]
[1728407290869,2.018,2436.4,2436.0,4.1048]
[1728407291068,2.018,2436.4,2435.8,3.2]
[1728407291264,2.018,2436.4,2436.0,0.41072]
[1728407291265,3.2078,2436.2,2436.0,0.41072]
[1728407291472,3.2078,2436.2,2435.7,4.0538]
[1728407291673,3.2078,2436.2,2435.8,0.41076]
[1728407291863,3.2078,2436.2,2436.0,0.41073]
[1728407292064,3.61851,2436.2,2435.9,0.41074]
[1728407292276,3.2078,2436.2,2436.1,0.41071]
[1728407292770,2.42867,2436.4,2436.1,0.41071]
[1728407292967,0.41068,2436.3,2436.2,0.4036]
[1728407293178,0.41068,2436.4,2436.2,0.4036]
[1728407293363,3.2078,2436.5,2435.5,0.205]
[1728407293364,0.4108,2435.6,2435.5,0.205]
[1728407293676,9.45281,2435.6,2434.8,0.6417]
[1728407293871,6.4078,2435.3,2435.2,0.41086]
[1728407294270,6.4078,2435.3,2435.1,0.41087]
[1728407294466,6.4078,2435.3,2435.2,0.41086]
[1728407294674,3.61079,2435.7,2435.4,0.41082]
[1728407294873,3.2,2435.7,2435.5,0.8235]
[1728407295068,3.2,2435.7,2435.6,0.4108]
[1728407295271,0.4108,2435.6,2435.5,0.8235]
[1728407299181,0.4109,2435.0,2434.9,0.205]
[1728407299371,0.41093,2434.8,2434.7,3.6361]
[1728407299975,4.51813,2434.8,2434.7,3.6361]
[1728407300480,10.515,2434.8,2434.4,0.4204]
[1728407300684,0.41098,2434.5,2434.4,0.4204]
[1728407300883,3.61098,2434.5,2434.4,0.4204]
[1728407301279,11.54328,2434.5,2433.9,0.6525]
[1728407301582,3.2,2434.3,2434.0,0.42]
[1728407301782,3.61102,2434.3,2434.2,0.41103]
[1728407301981,3.2,2434.3,2434.0,0.846]
[1728407302176,3.61103,2434.3,2434.1,0.41104]
[1728407302387,3.2,2434.3,2434.1,0.41104]
[1728407302686,3.2,2434.3,2434.2,0.41103]
[1728407303076,3.2,2434.3,2434.1,0.41104]
[1728407303279,3.2,2434.3,2434.2,0.41103]
[1728407303685,3.2,2434.3,2434.0,0.846]
[1728407303878,0.41104,2434.2,2434.0,0.846]
[1728407304079,3.2,2434.3,2434.1,0.41104]
[1728407304273,0.41105,2434.1,2434.0,0.846]
[1728407304481,0.41105,2434.1,2434.0,1.25707]
[1728407304482,3.2,2434.1,2434.0,1.25707]
[1728407305083,3.61103,2434.3,2434.2,0.41103]
[1728407305485,3.2078,2434.5,2434.0,0.846]
[1728407305486,6.4078,2434.5,2434.0,0.846]
[1728407305680,0.411,2434.4,2434.3,0.411]
[1728407305885,1.02751,2434.4,2434.0,3.2078]
[1728407306080,3.61105,2434.2,2434.0,1.27345]
[1728407306280,3.2,2434.2,2434.0,0.4375]
[1728407306479,6.4078,2434.5,2434.1,0.4249]
[1728407306683,3.2,2434.5,2434.4,0.411]
[1728407307485,3.2,2434.5,2433.6,0.205]
[1728407307486,19.7158,2434.5,2433.6,0.205]
[1728407307685,3.2,2433.7,2433.4,1.0281]
[1728407307984,6.81895,2433.5,2433.4,0.4198]
[1728407308180,6.87522009,2433.5,2433.4,0.4198]
[1728407308482,6.46407009,2433.5,2432.9,3.2078]
[1728407308787,3.2,2433.3,2433.2,0.831]
[1728407309082,3.25627009,2433.5,2433.2,3.6276]
[1728407309278,0.05627009,2433.4,2433.2,0.831]
[1728407309479,0.05627009,2433.4,2433.3,0.81449]
[1728407309974,0.05627009,2433.4,2433.3,0.41119]
[1728407310180,0.05627009,2433.4,2433.3,0.81539]
[1728407310382,0.05627009,2433.4,2433.3,4.92499]
[1728407310786,13.04813009,2433.4,2432.5,0.205]
[1728407310987,4.1096,2432.7,2432.6,0.4113]
[1728407311285,0.05627009,2432.7,2432.5,0.4222]
[1728407311484,0.05627009,2432.7,2432.6,0.4113]
[1728407311891,3.61898,2433.4,2433.1,0.41122]
[1728407311892,3.2,2433.3,2433.1,0.41122]
[1728407312097,4.1096,2433.0,2432.8,3.2078]
[1728407312386,4.1096,2432.9,2432.8,0.41127]
[1728407312587,4.1096,2432.9,2432.5,0.4114]
[1728407312797,4.1096,2432.9,2432.0,0.205]
[1728407312798,8.0596,2432.6,2432.0,0.205]
[1728407313086,4.1096,2432.4,2431.9,4.0468]
[1728407313287,4.1096,2432.4,2432.2,3.61916]
[1728407313477,0.41135,2432.4,2432.2,3.2078]
[1728407313679,3.2078,2432.9,2432.2,3.2078]
[1728407313882,4.1096,2432.6,2432.2,3.2078]
[1728407314086,4.1096,2432.3,2432.2,3.61917]
[1728407314387,0.41131,2432.6,2432.2,0.41137]
[1728407314589,3.90361217,2432.5,2432.1,0.83898]
[1728407314782,0.41137,2432.2,2431.9,0.4329]
[1728407314985,3.49228217,2432.0,2431.9,0.4329]
[1728407315283,3.90369217,2432.0,2431.9,0.4329]
[1728407315490,3.49228217,2432.0,2431.9,0.4329]
[1728407315686,3.49228217,2432.0,2431.7,0.839]
[1728407315891,3.90372217,2431.8,2431.7,0.4276]
[1728407316280,3.49228217,2431.8,2431.1,0.205]
[1728407316584,3.2078,2432.4,2431.4,0.4217]
[1728407316782,3.49228217,2432.1,2431.5,0.4114]
[1728407316985,3.49228217,2431.9,2431.5,0.4114]
[1728407317177,3.49228217,2432.1,2432.0,0.4114]
[1728407317581,7.1578,2432.5,2432.2,0.41136]
[1728407317784,3.49228217,2432.3,2432.2,0.41136]
[1728407317984,3.2078,2432.5,2432.4,0.41133]
[1728407317985,3.49228217,2432.5,2432.4,0.41133]
[1728407318593,3.2078,2432.8,2432.6,0.4113]
[1728407318887,0.41125,2432.9,2432.7,0.4136]
[1728407319082,3.49228217,2432.8,2432.7,0.4136]
[1728407319280,3.90355217,2432.8,2432.7,0.4136]
[1728407319782,0.41131,2432.6,2432.3,0.41134]
[1728407319983,3.49228217,2432.4,2432.3,0.41135]
[1728407320385,3.2078,2432.9,2432.2,0.4136]
[1728407320584,3.2078,2432.9,2432.8,0.41127]
[1728407320585,3.61906,2432.9,2432.8,0.41127]
[1728407320885,3.49228217,2432.8,2432.3,1.02839]
[1728407321082,3.90356217,2432.8,2432.6,0.41129]
[1728407321285,3.90356217,2432.8,2432.1,3.2078]
[1728407321286,3.49228217,2432.8,2432.1,3.2078]
[1728407321484,3.49228217,2432.5,2431.8,3.2078]
[1728407321687,3.90363217,2432.4,2432.2,0.41137]
[1728407321885,3.49228217,2432.4,2432.2,0.41137]
[1728407322189,7.11142217,2432.4,2432.2,0.41137]
[1728407322394,3.49228217,2432.4,2432.1,0.4375]
[1728407322787,3.49228217,2432.4,2432.3,0.41135]
[1728407323096,2.46326474,2432.4,2432.3,0.41135]
[1728407323289,2.87460474,2432.4,2432.2,0.41136]
[1728407323491,2.46326474,2432.4,2432.1,0.4375]
[1728407323686,2.46326474,2432.4,2432.3,0.41135]
[1728407323890,2.87462474,2432.3,2432.1,0.84888]
[1728407324493,0.41137,2432.2,2432.1,0.4375]
[1728407324794,0.41137,2432.2,2431.5,0.4114]
[1728407324795,2.46326474,2432.2,2431.5,0.4114]
[1728407325092,2.46326474,2431.6,2431.2,3.2078]
[1728407325489,2.87474474,2431.6,2431.4,0.4115]
[1728407325787,2.87474474,2431.6,2431.2,3.2078]
[1728407325989,1.02848,2432.1,2431.2,13.3206]
[1728407326193,0.41144,2431.8,2431.7,0.41145]
[1728407326395,2.46326474,2431.9,2431.6,0.41146]
[1728407326586,0.41145,2431.8,2431.7,0.85025]
[1728407326791,2.46326474,2431.9,2431.7,0.4388]
[1728407327001,0.41144,2431.8,2431.7,0.85025]
[1728407327295,2.87469474,2431.9,2431.7,0.85025]
[1728407327501,0.41141,2432.0,2431.8,0.41144]
[1728407327698,2.87467474,2432.0,2431.8,0.41144]
[1728407327893,2.46326474,2432.0,2431.5,3.2078]
[1728407328095,9.62106474,2431.6,2430.7,3.2078]
[1728407328295,0.41156,2431.1,2431.0,0.4466]
[1728407328592,2.46326474,2430.9,2430.7,3.2078]
[1728407328798,1.43357206,2430.9,2430.7,3.2078]
[1728407329100,1.84517206,2430.9,2430.7,3.61942]
[1728407329397,1.43357206,2430.8,2430.7,3.61943]
[1728407329899,0.41148,2431.6,2431.4,0.4115]
[1728407330195,1.43357206,2431.3,2431.2,0.41154]
[1728407330397,1.84510206,2431.3,2431.1,0.41155]
[1728407330599,1.43357206,2431.3,2431.2,0.41154]
[1728407330991,3.95,2431.8,2431.6,0.41146]
[1728407331194,4.64137206,2431.7,2431.6,0.41146]
[1728407331999,4.64137206,2431.7,2431.3,0.4182]
[1728407332000,0.41151,2431.4,2431.3,0.4182]
[1728407332198,1.84508206,2431.4,2431.3,0.4182]
[1728407332401,5.05288206,2431.4,2431.3,0.4182]
[1728407332899,5.05288206,2431.4,2430.1,3.2078]
[1728407332900,1.02899,2430.9,2430.1,3.2078]
[1728407333200,0.81717206,2430.4,2430.3,0.41169]
[1728407333400,0.81717206,2430.3,2430.1,3.2078]
[1728407333594,0.81717206,2430.3,2430.2,0.41171]
[1728407333791,0.81717206,2430.3,2430.0,0.2]
[1728407333792,0.81717206,2430.2,2430.0,0.2]
[1728407333999,0.81717206,2430.1,2430.0,0.61173]
[1728407334195,0.81717206,2430.5,2430.0,3.4078]
[1728407334396,0.81717206,2430.5,2430.4,0.41168]
[1728407335198,3.2078,2430.8,2430.4,13.3222]
[1728407335395,3.2078,2430.8,2430.4,3.2078]
[1728407335597,3.2078,2430.8,2430.4,3.61948]
[1728407335598,0.81717206,2430.5,2430.4,3.61948]
[1728407335993,0.81717206,2430.5,2430.4,0.41168]
[1728407336391,4.3777,2431.1,2430.4,7.3222]
[1728407336592,4.36152,2431.4,2431.0,0.41157]
[1728407336793,0.81717206,2431.2,2431.1,0.41156]
[1728407339496,0.81717206,2431.2,2430.7,4.1043]
[1728407339696,0.41158,2431.0,2430.8,0.4116]
[1728407340098,0.41158,2431.0,2430.7,4.1043]
[1728407340099,0.81717206,2431.0,2430.7,4.1043]
[1728407340296,1.22878206,2430.8,2430.7,4.06973]
[1728407340493,1.22878206,2430.8,2430.7,3.2078]
[1728407340995,10.02497206,2430.8,2430.3,0.41168]
[1728407341195,0.41167,2430.5,2430.3,0.41168]
[1728407341500,0.81717206,2430.4,2430.3,0.41169]
[1728407342791,0.41162,2430.8,2430.7,0.41162]
[1728407343095,1.22879206,2430.8,2430.7,0.41163]
[1728407343500,0.81717206,2430.8,2430.7,0.41163]
[1728407343897,3.95,2431.2,2431.1,0.41156]
[1728407344296,0.81717206,2431.2,2431.1,0.41156]
[1728407345602,0.81717206,2431.2,2430.8,1.46611]
[1728407345603,0.81717206,2431.2,2430.8,0.4371]
[1728407345802,0.81717206,2430.9,2430.8,0.84871]
[1728407346294,1.22876206,2430.9,2430.8,0.84871]
[1728407346495,1.22876206,2430.9,2430.5,0.9037]
[1728407346496,0.41163,2430.7,2430.5,0.9037]
[1728407346691,0.81717206,2430.6,2430.5,1.31536]
[1728407347602,0.81717206,2430.6,2430.5,0.4517]
[1728407347906,0.41168,2430.4,2430.3,0.4116]
[1728407348098,0.41171,2430.2,2430.1,0.83932]
[1728407348293,0.81717206,2430.2,2430.1,0.83933]
[1728407348797,1.22888206,2430.2,2430.1,0.83933]
[1728407348998,1.22888206,2430.2,2430.1,0.41173]
[1728407349194,0.41173,2430.1,2430.0,0.6118]
[1728407349399,1.22890206,2430.1,2430.0,0.2]
[1728407350101,8.67,2430.1,2428.9,3.2078]
[1728407350299,4.36191,2429.0,2428.9,3.2078]
[1728407350502,11.2746,2429.0,2428.5,0.41199]
[1728407350809,7.1578,2429.0,2428.9,0.41193]
[1728407351001,7.1578,2429.0,2428.8,0.41194]
[1728407351197,3.95,2429.0,2428.6,3.2078]
[1728407351409,3.95,2429.0,2428.9,0.41193]
[1728407351798,3.95,2429.0,2428.7,0.4396]
[1728407351996,3.2078,2428.8,2428.3,0.8491]
[1728407352199,3.95,2428.6,2428.2,0.4529]
[1728407352410,3.95,2428.6,2428.5,0.412]
[1728407352905,3.61975,2428.8,2428.4,0.41201]
[1728407353109,4.45,2428.6,2428.3,0.41202]
[1728407353406,1.0297,2429.3,2428.8,0.41195]
[1728407353407,3.2078,2428.9,2428.8,0.41195]
[1728407353598,3.2078,2429.0,2428.4,1.03005]
[1728407353803,4.45,2429.3,2429.1,0.41189]
[1728407353999,3.2078,2429.4,2428.8,3.2078]
[1728407354200,4.45,2429.6,2428.9,1.02981]
[1728407354408,3.2078,2429.8,2429.7,0.4118]
[1728407355300,4.45,2430.0,2429.3,1.89553]
[1728407355609,7.6578,2430.3,2429.5,1.02955]
[1728407355908,7.6578,2430.3,2429.5,0.4118]
[1728407356204,3.2078,2430.3,2430.2,0.41171]
[1728407356603,7.206,2430.6,2429.7,3.2078]
[1728407356604,4.45,2430.6,2430.5,0.41166]
[1728407356803,0.6087298,2431.7,2430.0,1.02934]
[1728407356804,4.45,2430.9,2430.7,0.41162]
[1728407357004,4.45,2430.9,2430.8,0.41161]
[1728407357200,0.096,2431.5,2431.4,0.41151]
[1728407357412,3.61926,2431.7,2430.7,1.02907]
[1728407357714,0.41143,2431.9,2431.6,0.41147]
[1728407357905,0.41146,2431.8,2431.5,0.41148]
[1728407358206,0.41146,2431.8,2431.0,1.02891]
[1728407358207,0.41143,2431.9,2431.6,0.41147]
[1728407358809,7.6578,2432.0,2431.1,1.02889]
[1728407358810,8.06922,2432.0,2431.1,1.44046]
[1728407359010,8.06922,2432.0,2431.2,1.02886]
[1728407359011,7.6578,2432.0,2431.2,1.02886]
[1728407359204,7.6578,2432.0,2431.8,0.41143]
[1728407359418,3.2078,2432.0,2431.8,0.41143]
[1728407359912,3.2078,2432.0,2431.3,3.2078]
[1728407360311,3.2078,2432.0,2431.4,1.02878]
[1728407360510,3.2078,2432.0,2431.9,0.41142]
[1728407361207,3.2078,2432.0,2431.4,1.02878]
[1728407361514,3.2078,2432.0,2431.9,0.41142]
[1728407361813,0.41142,2431.9,2431.6,0.41147]
[1728407362016,0.41143,2431.9,2431.6,0.41147]
[1728407362208,0.41144,2431.8,2431.5,0.41149]
[1728407362510,0.41145,2431.8,2431.4,0.4115]